fUSD/lending_fUSD_20260201
["ID","MTS","AMOUNT","RATE_DAILY","PERIOD"]
[404231685,1769979094216,-500.0,0.00055499,120]
[404231686,1769979094254,-500.0,0.00055499,120]
[404231687,1769979094292,-500.0,0.00055499,120]
[404231688,1769979094332,-500.0,0.00055499,120]
[404231689,1769979094371,-500.0,0.00055499,120]
[404231690,1769979094412,-500.0,0.00055499,120]
[404231691,1769979094451,-500.0,0.00055499,120]
[404231692,1769979094490,-500.0,0.00055499,120]
[404231693,1769979094528,-500.0,0.00055499,120]
[404231694,1769979094578,-500.0,0.00055499,120]
[404231695,1769979094616,-500.0,0.00055499,120]
[404231696,1769979094653,-500.0,0.00055499,120]
[404231697,1769979094691,-500.0,0.00055499,120]
[404231698,1769979094730,-500.0,0.00055499,120]
[404231699,1769979094769,-500.0,0.00055499,120]
[404231700,1769979094809,-500.0,0.00055499,120]
[404231701,1769979094847,-500.0,0.00055499,120]
[404231702,1769979094886,-500.0,0.00055499,120]
[404231703,1769979094925,-1459.48,0.000555,120]
[404231704,1769979094967,-437.29881376,0.00057534,120]
[404231705,1769979095009,-84171.0,0.00057553,120]
[404231706,1769979095048,-151.0,0.000577,120]
[404231707,1769979095089,-84171.0,0.00057753,120]
[404231708,1769979095320,-84171.0,0.00057953,120]
[404231709,1769979095360,-1000.0,0.00058,120]
[404231710,1769979095402,-200.0,0.00058,120]
[404231711,1769979095443,-300.0,0.00058,120]
[404231712,1769979095490,-1043.0,0.00058,120]
[404231713,1769979095538,-150.0,0.00058141,120]
[404231714,1769979095578,-84171.0,0.00058153,120]
[404231715,1769979095619,-1103.0,0.00058275,120]
[404231716,1769979095657,-531.76,0.000583,120]
[404231717,1769979095696,-84171.0,0.00058353,120]
[404231718,1769979095737,-84171.0,0.00058373,120]
[404231719,1769979095780,-84171.0,0.00058393,120]
[404231720,1769979095825,-151.0,0.000585,120]
[404231721,1769979095868,-167.0,0.000585,120]
[404231722,1769979095913,-84171.0,0.00058593,120]
[404231723,1769979095954,-326.45123699,0.0005877,120]
[404231724,1769979095995,-84171.0,0.00058793,120]
[404231725,1769979096039,-9000.0,0.000589,120]
[404231726,1769979096079,-913.73401914,0.00058986,120]
[404231727,1769979096123,-4000.0,0.0005899,120]
[404231728,1769979096163,-5077.47,0.00059,120]
[404231729,1769979096207,-1000.0,0.00059,120]
[404231730,1769979096250,-300.0,0.00059,120]
[404231731,1769979096292,-64595.2520813,0.00059,120]
[404231732,1769979096335,-151.0,0.000593,120]
[404231733,1769979096378,-84171.0,0.00059393,120]
[404231734,1769979096423,-5000000.0,0.000595,120]
[404231735,1769979096468,-1996931.09281605,0.000595,120]
[404231736,1769979111162,-500.0,0.0005589,120]
[404231737,1769979111204,-500.0,0.00056986,120]
[404231738,1769979111244,-500.0,0.00058082,120]
[404231739,1769979111283,-548.35834776,0.00059178,120]
[404231740,1769979111325,-3003068.90718395,0.000595,120]
[404231741,1769979111365,-4994882.73446829,0.000595,120]
[404231742,1769979116347,-5117.26553171,0.000595,120]
[404231743,1769979116388,-84171.0,0.00059593,120]
[404231744,1769979116425,-84171.0,0.00059793,120]
[404231745,1769979116462,-3259.14115171,0.000599,120]
[404231746,1769979116500,-150.0,0.0005997,120]
[404231747,1769979116538,-84171.0,0.00059993,120]
[404231748,1769979116579,-1000.0,0.00059999,120]
[404231749,1769979116618,-2000.0,0.0006,120]
[404231750,1769979116657,-150.0,0.0006,120]
[404231751,1769979116695,-150.0,0.0006,120]
[404231752,1769979116818,-1000.0,0.0006,120]
[404231753,1769979116859,-200.0,0.0006,120]
[404231754,1769979116899,-625471.83913117,0.0006,120]
[404231755,1769979116939,-250.0,0.0006,120]
[404231756,1769979116983,-250.0,0.0006,120]
[404231757,1769979117027,-69479.66778522,0.0006,120]
[404231758,1769979117068,-500.0,0.0006,120]
[404231759,1769979117109,-10000.0,0.0006,120]
[404231760,1769979117156,-1000.0,0.0006,120]
[404231761,1769979117208,-4000.0,0.0006,120]
[404231762,1769979117249,-30000.0,0.0006,120]
[404231763,1769979117290,-1002.99218315,0.0006,120]
[404231764,1769979117331,-540075.31,0.0006,120]
[404231765,1769979117371,-314999.3,0.0006,120]
[404231766,1769979117408,-990.50283576,0.0006,120]
[404231767,1769979117453,-123516.0,0.0006,120]
[404231768,1769979117506,-74253.0,0.0006,120]
[404231769,1769979117545,-163.81186421,0.0006,120]
[404231770,1769979117588,-150.0,0.0006,120]
[404231771,1769979117631,-1191.26,0.0006,120]
[404231772,1769979117677,-170.15,0.0006,120]
[404231773,1769979117716,-950.6,0.00060019,120]
[404231774,1769979117756,-151.0,0.000601,120]
[404231775,1769979117795,-219.32860432,0.00060273,120]
[404231776,1769979168542,-14530.95804243,0.00043701,30]
[404231777,1769979168584,-11759.04077769,0.00043701,30]
[404231778,1769979168627,-60445.55138569,0.00043701,120]
[404231779,1769979168668,-1652108.68793632,0.00043701,30]
[404231780,1769979168708,-10645.23972362,0.00043701,30]
[404231781,1769979168747,-938.52599535,0.00043701,30]
[404231782,1769979168786,-35939.38535682,0.00043701,30]
[404231783,1769979168824,-159.36231541,0.00043701,30]
[404231784,1769979168862,-31923.96806408,0.00043701,30]
[404231785,1769979168900,-16164.5381962,0.00043701,30]
[404231786,1769979168938,-50000.0,0.00043701,30]
[404231787,1769979168977,-154.56750958,0.00043701,120]
[404231788,1769979169016,-14112.04821328,0.00043701,30]
[404231789,1769979169056,-33887.6359698,0.00043701,30]
[404231790,1769979169095,-15224.50309105,0.00043701,30]
[404231791,1769979169134,-170.45153845,0.00043701,120]
[404231792,1769979169173,-28748.10420612,0.00043701,30]
[404231793,1769979169211,-41369.90061787,0.00043701,30]
[404231794,1769979169249,-25548.49050092,0.00043701,30]
[404231795,1769979169286,-1453.2281052,0.00043701,120]
[404231796,1769979169323,-60967.7950971,0.00043701,30]
[404231797,1769979169361,-2552.22848841,0.00043701,120]
[404231798,1769979169400,-7829.10472297,0.00043701,30]
[404231799,1769979169436,-17068.20841142,0.00043701,30]
[404231800,1769979169472,-4016337.67823817,0.00043701,30]
[404231801,1769979169508,-509.91763924,0.00043701,30]
[404231802,1769979169546,-1428.97905648,0.00043701,120]
[404231803,1769979169586,-105357.04386104,0.00043701,30]
[404231804,1769979169624,-734.83392409,0.00043701,120]
[404231805,1769979169660,-1014.04684013,0.00043701,120]
[404231806,1769979169697,-433.47433603,0.00043701,120]
[404231807,1769979169735,-251.8363288,0.00043701,60]
[404231808,1769979169774,-191.55930549,0.00043701,120]
[404231809,1769979169813,-155.01,0.00043701,120]
[404231810,1769979169853,-418.16,0.00043701,89]
[404231811,1769979169893,-1306.16988171,0.00043701,120]
[404231812,1769979169933,-946.01636088,0.00043701,30]
[404231813,1769979169973,-1000.0,0.00043701,30]
[404231814,1769979170228,-500.0,0.00043701,120]
[404231815,1769979170269,-500.0,0.00043701,120]
[404231816,1769979170307,-500.0,0.00043701,120]
[404231817,1769979170345,-500.0,0.00043701,120]
[404231818,1769979170380,-500.0,0.00043701,120]
[404231819,1769979170418,-500.0,0.00043701,120]
[404231820,1769979170453,-500.0,0.00043701,120]
[404231821,1769979170491,-500.0,0.00043701,120]
[404231822,1769979170530,-500.0,0.00043701,120]
[404231823,1769979170565,-239.48214327,0.00043701,120]
[404231824,1769979170601,-500.0,0.00043701,120]
[404231825,1769979170637,-500.0,0.00043701,120]
[404231826,1769979170672,-485.44,0.00043701,30]
[404231827,1769979170706,-485.44,0.00043701,30]
[404231828,1769979170740,-485.44,0.00043701,30]
[404231829,1769979170775,-485.44,0.00043701,30]
[404231830,1769979170811,-526.67,0.00043701,30]
[404231831,1769979170848,-485.44,0.00043701,30]
[404231832,1769979170884,-150.0,0.00043701,30]
[404231833,1769979170920,-485.44,0.00043701,30]
[404231834,1769979170957,-485.44,0.00043701,30]
[404231835,1769979170992,-159.42926888,0.00043701,30]
[404231836,1769979171030,-485.44,0.00043701,30]
[404231837,1769979171067,-485.44,0.00043701,30]
[404231838,1769979171105,-485.44,0.00043701,30]
[404231865,1769979729599,178.32,0.0001221,2]
[404231866,1769979868048,1173.0,0.00022,120]
[404231867,1769979916725,586.0,0.00021,30]
[404231947,1769980164091,-170.407755,0.00015409,2]
[404231948,1769980164112,-488.428,0.00015487,2]
[404231949,1769980164132,-2.5540329,0.00015524,2]
[404231983,1769980232202,-166.66,0.00014832,2]
[404231984,1769980232212,-166.66,0.00015144,2]
[404231985,1769980232222,-166.66,0.00015456,2]
[404231986,1769980232232,-211.00927223,0.00015524,2]
[404231987,1769980232242,-213.56330512,0.00015609,2]
[404231988,1769980232257,-150.00052265,0.00015609,2]
[404231989,1769980232266,-186.09929735,0.00015693,2]
[404231990,1769980232275,-848.99391763,0.00015693,2]
[404231991,1769980232286,-500.0,0.00015693,2]
[404231992,1769980232297,-279.26125715,0.00015693,2]
[404231993,1769980232312,-414.462976,0.00015693,2]
[404231994,1769980232322,-158.38384548,0.00015693,2]
[404231995,1769980232333,-55.17945964,0.00015693,2]
[404231996,1769980232342,-743.27054036,0.00015702,2]
[404231997,1769980232353,-456.72945964,0.00015702,2]
[404231998,1769980232363,-300.0,0.00015702,2]
[404231999,1769980232372,-1187.40367576,0.00015703,2]
[404232024,1769980238237,-837.35,0.00015703,2]
[404232025,1769980238294,-706.55591932,0.00015703,2]
[404232026,1769980238306,-757.95453501,0.00015703,2]
[404232027,1769980238355,-304.0,0.00015703,2]
[404232028,1769980238367,-26981.28139796,0.00015703,2]
[404232029,1769980238378,-31900.0002,0.00015703,2]
[404232039,1769980238608,-500.0,0.00015703,2]
[404232199,1769980240317,-500.0,0.00015703,2]
[404232207,1769980240374,-1191.98,0.00015703,2]
[404232208,1769980240385,-969.03,0.00015703,2]
[404232211,1769980240395,-425.63,0.00015703,2]
[404232216,1769980240431,-499918.2115024,0.00015703,2]
[404232229,1769980240544,-1405.08006027,0.00015703,2]
[404232231,1769980240554,-86756.45013991,0.00015703,2]
[404232237,1769980240601,-372.34703258,0.00015703,2]
[404232240,1769980240612,-8729.85355906,0.00015703,2]
[404232242,1769980240622,-420.86114321,0.00015703,2]
[404232244,1769980240633,-473.93335833,0.00015703,2]
[404232246,1769980240643,-3726.3795467,0.00015703,2]
[404232248,1769980240654,-922.18333418,0.00015703,2]
[404232255,1769980240711,-2911.12206947,0.00015703,2]
[404232268,1769980240824,-544162.14844493,0.00015703,2]
[404232367,1769980244967,-1148.61,0.00015703,2]
[404232368,1769980245027,-512.6900035,0.00015703,2]
[404232397,1769980246390,-1051.47498868,0.00015703,2]
[404232400,1769980246402,-4851.18392363,0.00015703,2]
[404232402,1769980246413,-66419.01635792,0.00015703,2]
[404232404,1769980246424,-100968.28294818,0.00015703,2]
[404232419,1769980246559,-18728.72,0.00015703,2]
[404232863,1769980477131,468.24016298,0.00013699,120]
[404233115,1769980834531,-271.0,0.00014645,2]
[404233116,1769980843894,-368.39,0.00014645,2]
[404233117,1769980843917,-131.61,0.00014667,2]
[404233118,1769980846750,-18.39043001,0.00014667,2]
[404233119,1769980846773,-481.60956999,0.00014667,2]
[404233120,1769980850509,-500.0,0.00014667,2]
[404233123,1769980854024,-139.80043001,0.00014667,2]
[404233125,1769980864822,360.19956999,0.00014623,2]
[404233126,1769980864844,41.05043001,0.00014623,2]
[404233127,1769980866317,187.94956999,0.00014623,2]
[404233131,1769980936453,1074.73124185,0.00012849,2]
[404233163,1769981244646,2000.16,0.00011746,2]
[404233215,1769981431290,-248.48516942,0.00014272,2]
[404233218,1769981431300,-397.30719259,0.000143,2]
[404233223,1769981431348,-26.62280741,0.000143,2]
[404233224,1769981431358,-168.12,0.00014372,2]
[404233225,1769981431368,-1200.0,0.00014372,2]
[404233226,1769981431377,-300.0,0.00014372,2]
[404233227,1769981431386,-264.0,0.00014372,2]
[404233228,1769981431395,-300.0,0.00014372,2]
[404233229,1769981431405,-269.0,0.00014372,2]
[404233230,1769981431414,-500.0,0.00014373,2]
[404233231,1769981431423,-500.0,0.00014373,2]
[404233232,1769981431432,-500.0,0.00014373,2]
[404233233,1769981431441,-500.0,0.00014373,2]
[404233234,1769981431450,-150.0,0.00014493,2]
[404233235,1769981431459,-272.07043001,0.00014623,2]
[404233236,1769981431470,-172.94,0.00014874,2]
[404233237,1769981431479,-796.55427389,0.00014921,2]
[404233238,1769981431488,-613.56434793,0.00014921,2]
[404233239,1769981431498,-339.60098248,0.00014921,2]
[404233240,1769981431508,-1028.257643,0.00015117,2]
[404233241,1769981431518,-156.65,0.00015193,2]
[404233243,1769981431527,-156.65,0.00015247,2]
[404233244,1769981431536,-156.65,0.00015302,2]
[404233245,1769981431545,-246.0,0.00015323,2]
[404233246,1769981431555,-1458.0,0.00015351,2]
[404233247,1769981431564,-401.25,0.00015354,2]
[404233248,1769981431573,-156.65,0.00015356,2]
[404233249,1769981431582,-325.0,0.00015363,2]
[404233250,1769981431592,-754.0,0.00015381,2]
[404233251,1769981431601,-1900.0,0.00015393,2]
[404233252,1769981431610,-300.0,0.00015401,2]
[404233253,1769981431619,-310.78,0.00015402,2]
[404233254,1769981431630,-150.99,0.00015402,2]
[404233255,1769981431639,-299.99,0.00015402,2]
[404233256,1769981431648,-2135.93171056,0.00015402,2]
[404233257,1769981431660,-391.88,0.00015402,2]
[404233258,1769981431672,-285.26095391,0.00015402,2]
[404233259,1769981431684,-1501.40733553,0.00015402,2]
[404233261,1769981431693,-3827.76,0.00015402,2]
[404233263,1769981431702,-6783.87,0.00015402,2]
[404233265,1769981431711,-59069.10417422,0.00015402,2]
[404233267,1769981431724,-3468.32582578,0.00015402,2]
[404233270,1769981431733,-150.99,0.00015402,2]
[404233271,1769981431742,-566.35,0.00015402,2]
[404233272,1769981431752,-9999.99,0.00015402,2]
[404233273,1769981431761,-999.99,0.00015402,2]
[404233274,1769981431770,-3378.8932308,0.00015403,2]
[404233275,1769981431780,-181.71380593,0.00015403,2]
[404233276,1769981431789,-8959.07903929,0.00015403,2]
[404233277,1769981431798,-238.17129079,0.00015403,2]
[404233278,1769981431807,-156.65,0.0001541,2]
[404233279,1769981431816,-1201.23,0.0001541,2]
[404233280,1769981431825,-978.38,0.0001541,2]
[404233281,1769981431834,-6734.04,0.0001541,2]
[404233282,1769981431844,-568.0,0.00015424,2]
[404233283,1769981431853,-159.0,0.00015435,2]
[404233284,1769981431862,-156.65,0.00015465,2]
[404233285,1769981431873,-500.0,0.00015474,2]
[404233286,1769981431882,-150.0,0.00015474,2]
[404233287,1769981431891,-176.03995161,0.00015492,2]
[404233288,1769981431900,-216.93470814,0.000155,2]
[404233289,1769981431909,-206.72304219,0.00015501,2]
[404233290,1769981431923,-296.5938985,0.00015501,2]
[404233291,1769981431937,-500.0,0.00015501,2]
[404233292,1769981431946,-250.94388461,0.00015501,2]
[404233293,1769981431956,-500.0,0.00015501,2]
[404233294,1769981431965,-500.0,0.00015501,2]
[404233295,1769981431975,-500.0,0.00015501,2]
[404233296,1769981431984,-500.0,0.00015501,2]
[404233297,1769981431993,-356.39378824,0.00015501,2]
[404233298,1769981432002,-275.66608,0.00015501,2]
[404233299,1769981432012,-500.0,0.00015501,2]
[404233300,1769981432023,-500.0,0.00015501,2]
[404233301,1769981432033,-500.0,0.00015501,2]
[404233302,1769981432043,-500.0,0.00015501,2]
[404233303,1769981432053,-500.0,0.00015501,2]
[404233304,1769981432062,-172.16011428,0.00015501,2]
[404233305,1769981432072,-500.0,0.00015501,2]
[404233306,1769981432309,-500.0,0.00015501,2]
[404233307,1769981432320,-500.0,0.00015501,2]
[404233308,1769981432329,-500.0,0.00015501,2]
[404233309,1769981432339,-36627.67894381,0.00015502,2]
[404233310,1769981432351,-119450.23450449,0.00015502,2]
[404233311,1769981432363,-11124.83490093,0.00015502,2]
[404233318,1769981437442,-6093.96534532,0.00015502,2]
[404233319,1769981437500,-2054.73817277,0.00015502,2]
[404233320,1769981437560,-1672.87335125,0.00015502,2]
[404233413,1769981439470,-796.04788305,0.00015502,2]
[404233414,1769981439530,-684.16545354,0.00015502,2]
[404233415,1769981439541,-2242.24942431,0.00015502,2]
[404233416,1769981439589,-2719253.21202053,0.00015502,2]
[404233417,1769981439599,-4011.6856472,0.00015503,2]
[404233418,1769981439608,-182.9222703,0.00015503,2]
[404233419,1769981439617,-10000.0,0.00015503,2]
[404233420,1769981439628,-156.65,0.00015519,2]
[404233421,1769981439638,-389.8103178,0.00015529,2]
[404233422,1769981439647,-201.85,0.00015561,2]
[404233423,1769981439658,-743.53578904,0.00015569,2]
[404233424,1769981439667,-156.65,0.00015573,2]
[404233425,1769981439677,-553.551,0.00015602,2]
[404233426,1769981439688,-568.58467958,0.00015602,2]
[404233427,1769981439699,-33275.4141,0.00015603,2]
[404233428,1769981439708,-1000.0,0.00015603,2]
[404233429,1769981439717,-263.45437226,0.00015603,2]
[404233430,1769981439728,-156.65,0.00015627,2]
[404233431,1769981439737,-183.97907001,0.00015669,2]
[404233432,1769981439746,-3378.89323076,0.0001568,2]
[404233433,1769981439756,-8959.07903922,0.0001568,2]
[404233434,1769981439765,-156.65,0.00015682,2]
[404233435,1769981439775,-151.0,0.00015684,2]
[404233436,1769981439784,-161.4582186,0.00015702,2]
[404233437,1769981439796,-453223.5979758,0.00015712,2]
[404233438,1769981439805,-19917.6677201,0.00015712,2]
[404233439,1769981439815,-156.65,0.00015736,2]
[404233440,1769981439825,-420.0,0.00015739,2]
[404233441,1769981439835,-1596.99395388,0.0001575,2]
[404233442,1769981439846,-4214.49231121,0.0001575,2]
[404233443,1769981439858,-7434.86399671,0.0001575,2]
[404233444,1769981439867,-166.66,0.00015769,2]
[404233445,1769981439876,-156.65,0.0001579,2]
[404233446,1769981439885,-500.0,0.00015802,2]
[404233448,1769981439895,-458.39872479,0.00015802,2]
[404233450,1769981439904,-500.0,0.00015802,2]
[404233451,1769981439913,-500.0,0.00015802,2]
[404233452,1769981439923,-500.0,0.00015802,2]
[404233453,1769981439933,-1680.0,0.00015809,2]
[404233454,1769981439943,-156.65,0.00015844,2]
[404233456,1769981439951,-156.65,0.00015899,2]
[404233457,1769981439961,-238.17129078,0.00015902,2]
[404233458,1769981439973,-156.65,0.00015953,2]
[404233459,1769981439982,-3378.89323076,0.00015958,2]
[404233460,1769981439991,-8959.07903922,0.00015958,2]
[404233461,1769981440000,-263.45437225,0.00015986,2]
[404233462,1769981440009,-109511.18383311,0.00016,2]
[404233463,1769981440018,-166.66,0.00016081,2]
[404233464,1769981440027,-401.25,0.00016085,2]
[404233465,1769981440036,-172.94,0.00016101,2]
[404233466,1769981440045,-3408.52,0.00016116,2]
[404233467,1769981440055,-1000.0,0.0001618,2]
[404233468,1769981440066,-276.18766446,0.00016215,2]
[404233469,1769981440076,-500.45016231,0.00016215,2]
[404233470,1769981440086,-500.0,0.00016215,2]
[404233471,1769981440095,-500.0,0.00016215,2]
[404233472,1769981440106,-500.0,0.00016215,2]
[404233473,1769981440116,-500.8695205,0.00016215,2]
[404233474,1769981440125,-500.0,0.00016215,2]
[404233475,1769981440135,-500.0,0.00016215,2]
[404233476,1769981440146,-500.0,0.00016215,2]
[404233477,1769981440157,-500.0,0.00016215,2]
[404233478,1769981440167,-500.0,0.00016215,2]
[404233479,1769981440176,-500.0,0.00016215,2]
[404233480,1769981440186,-500.0,0.00016215,2]
[404233481,1769981440196,-500.0,0.00016215,2]
[404233482,1769981440207,-597.93092721,0.00016215,2]
[404233483,1769981440217,-500.52349132,0.00016215,2]
[404233484,1769981440229,-500.28379137,0.00016215,2]
[404233485,1769981440239,-500.0,0.00016215,2]
[404233486,1769981440248,-500.40958663,0.00016215,2]
[404233487,1769981440258,-500.0,0.00016215,2]
[404233488,1769981440267,-333.63674101,0.00016215,2]
[404233489,1769981440276,-500.0,0.00016215,2]
[404233490,1769981440286,-500.36134052,0.00016215,2]
[404233491,1769981440297,-500.76188298,0.00016215,2]
[404233492,1769981440306,-500.13624415,0.00016215,2]
[404233493,1769981440316,-172.44250909,0.00016215,2]
[404233494,1769981440326,-500.0,0.00016215,2]
[404233495,1769981440335,-463.54060625,0.00016215,2]
[404233496,1769981440344,-500.0,0.00016215,2]
[404233497,1769981440353,-175.77488165,0.00016215,2]
[404233498,1769981440363,-160.18403092,0.00016215,2]
[404233499,1769981440374,-500.0,0.00016215,2]
[404233500,1769981440384,-160.17285395,0.00016215,2]
[404233501,1769981440394,-500.56292741,0.00016215,2]
[404233502,1769981440405,-210.3644324,0.00016215,2]
[404233503,1769981440413,-160.19860466,0.00016215,2]
[404233504,1769981440422,-160.07078646,0.00016215,2]
[404233505,1769981440431,-208.40720819,0.00016215,2]
[404233506,1769981440439,-500.0,0.00016215,2]
[404233507,1769981440449,-500.0,0.00016215,2]
[404233508,1769981440458,-500.0,0.00016215,2]
[404233509,1769981440467,-613.82743494,0.00016215,2]
[404233510,1769981440480,-432.17920076,0.00016215,2]
[404233511,1769981440490,-500.0,0.00016215,2]
[404233512,1769981440499,-182.39675522,0.00016215,2]
[404233513,1769981440509,-500.0,0.00016215,2]
[404233514,1769981440518,-169.74769321,0.00016215,2]
[404233515,1769981440527,-500.0,0.00016215,2]
[404233516,1769981440536,-500.78479559,0.00016215,2]
[404233517,1769981440545,-284.47980203,0.00016215,2]
[404233518,1769981440556,-309.32938346,0.00016215,2]
[404233519,1769981440565,-500.0,0.00016215,2]
[404233520,1769981440575,-500.22501364,0.00016215,2]
[404233521,1769981440584,-208.86257805,0.00016215,2]
[404233522,1769981440593,-500.67654953,0.00016215,2]
[404233523,1769981440603,-471.58451912,0.00016215,2]
[404233524,1769981440611,-162.14060441,0.00016215,2]
[404233525,1769981440622,-509.42618613,0.00016215,2]
[404233526,1769981440631,-161.25264518,0.00016215,2]
[404233527,1769981440640,-500.0,0.00016215,2]
[404233528,1769981440649,-165.95473765,0.00016215,2]
[404233529,1769981440658,-500.44195081,0.00016215,2]
[404233530,1769981440667,-161.52754955,0.00016215,2]
[404233531,1769981440677,-161.96888035,0.00016215,2]
[404233532,1769981440688,-392.58436043,0.00016215,2]
[404233533,1769981440698,-500.0,0.00016215,2]
[404233534,1769981440707,-500.0,0.00016215,2]
[404233535,1769981440717,-500.60514284,0.00016215,2]
[404233536,1769981440728,-500.44403009,0.00016215,2]
[404233537,1769981440737,-500.23746588,0.00016215,2]
[404233538,1769981440746,-164.79829562,0.00016215,2]
[404233539,1769981440755,-500.0,0.00016215,2]
[404233540,1769981440764,-162.70376611,0.00016215,2]
[404233541,1769981440774,-512.45868971,0.00016215,2]
[404233542,1769981440783,-500.0,0.00016215,2]
[404233543,1769981440793,-500.32022878,0.00016215,2]
[404233544,1769981440802,-484.95031799,0.00016215,2]
[404233545,1769981440813,-500.0,0.00016215,2]
[404233546,1769981440822,-500.58361671,0.00016215,2]
[404233547,1769981440831,-500.0,0.00016215,2]
[404233548,1769981440840,-500.0,0.00016215,2]
[404233549,1769981440850,-500.0,0.00016215,2]
[404233550,1769981440859,-3378.89323076,0.00016235,2]
[404233551,1769981440869,-8959.07903922,0.00016235,2]
[404233552,1769981440879,-151.0,0.00016311,2]
[404233553,1769981440889,-151.0,0.00016321,2]
[404233554,1769981440898,-921.99,0.00016339,2]
[404233555,1769981440908,-151.0,0.00016358,2]
[404233556,1769981440918,-151.0,0.00016365,2]
[404233557,1769981440927,-263.45437225,0.00016369,2]
[404233558,1769981440936,-166.66,0.00016393,2]
[404233559,1769981440946,-238.17129078,0.00016402,2]
[404233560,1769981440955,-180.25,0.00016411,2]
[404233561,1769981440965,-180.25,0.00016411,2]
[404233562,1769981440975,-180.25,0.00016411,2]
[404233563,1769981440984,-2810.0,0.00016418,2]
[404233564,1769981440993,-2008.34441638,0.00016438,2]
[404233565,1769981441002,-264.43161989,0.00016438,2]
[404233566,1769981441011,-500.0,0.00016438,2]
[404233567,1769981441020,-500.0,0.00016438,2]
[404233568,1769981441029,-500.0,0.00016438,2]
[404233569,1769981441038,-500.0,0.00016438,2]
[404233570,1769981441047,-500.0,0.00016438,2]
[404233571,1769981441056,-639.68949456,0.00016438,2]
[404233572,1769981441065,-460.02,0.00016451,2]
[404233573,1769981441074,-2842.70437788,0.00016486,2]
[404233574,1769981441084,-3378.89323076,0.00016513,2]
[404233575,1769981441092,-8959.07903922,0.00016513,2]
[404233576,1769981441101,-510.0,0.00016525,2]
[404233577,1769981441110,-4565.0,0.00016587,2]
[404233578,1769981441119,-4011.68564718,0.00016702,2]
[404233579,1769981441128,-182.92227028,0.00016702,2]
[404233580,1769981441138,-4565.0,0.00016724,2]
[404233581,1769981441149,-4565.0,0.00016726,2]
[404233582,1769981441159,-743.53578902,0.00016735,2]
[404233583,1769981441169,-11122.11188907,0.0001675,2]
[404233584,1769981441182,-15048.6039,0.0001675,2]
[404233585,1769981441192,-263.45437225,0.00016752,2]
[404233586,1769981441202,-4565.0,0.00016756,2]
[404233587,1769981441212,-159.0639522,0.00016763,2]
[404233588,1769981441222,-395.64865199,0.00016763,2]
[404233589,1769981441231,-500.0,0.00016763,2]
[404233590,1769981441240,-500.0,0.00016763,2]
[404233591,1769981441250,-500.73429157,0.00016763,2]
[404233592,1769981441260,-500.51837195,0.00016763,2]
[404233593,1769981441269,-500.77325853,0.00016763,2]
[404233594,1769981441278,-500.0,0.00016763,2]
[404233595,1769981441287,-500.0,0.00016763,2]
[404233596,1769981441296,-500.82999627,0.00016763,2]
[404233597,1769981441305,-500.0,0.00016763,2]
[404233598,1769981441313,-500.7971561,0.00016763,2]
[404233599,1769981441322,-500.0,0.00016763,2]
[404233600,1769981441331,-626.57032524,0.00016763,2]
[404233601,1769981441340,-500.82401357,0.00016763,2]
[404233602,1769981441350,-500.0,0.00016763,2]
[404233603,1769981441359,-500.89443715,0.00016763,2]
[404233604,1769981441370,-501.26182196,0.00016763,2]
[404233605,1769981441380,-500.91864191,0.00016763,2]
[404233606,1769981441389,-500.72482748,0.00016763,2]
[404233607,1769981441400,-500.8043205,0.00016763,2]
[404233608,1769981441410,-500.69372146,0.00016763,2]
[404233609,1769981441419,-500.9734639,0.00016763,2]